[Event "Titled Tuesday Blitz April 05 Early 2022"]
[White "Ardila, Oscar Humberto"]
[Black "Kostiukov, Alexandr"]
[WhiteFideId "4404742"]
[BlackFideId "14108100"]
[WhiteElo "1983"]
[BlackElo "2202"]
[Result "0-1"]
[Round "11"]
[TimeControl "180+1"]
[Date "2022.04.05"]
[WhiteClock "0:01:36"]
[BlackClock "0:01:46"]

1. d4 {[%clk 0:03:00]}  g6 {[%clk 0:02:41]} 2. c4 {[%clk 0:03:00]}  Bg7 {[%clk 0:02:42]} 3. Nc3 {[%clk 0:03:01]}  d6 {[%clk 0:02:43]} 4. e4 {[%clk 0:03:01]}  e5 {[%clk 0:02:43]} 5. d5 {[%clk 0:03:00]}  f5 {[%clk 0:02:43]} 6. Bd3 {[%clk 0:02:59]}  Nf6 {[%clk 0:02:42]} 7. Qc2 {[%clk 0:02:59]}  Na6 {[%clk 0:02:38]} 8. f3 {[%clk 0:02:57]}  O-O {[%clk 0:02:35]} 9. Nge2 {[%clk 0:02:58]}  Nb4 {[%clk 0:02:32]} 10. Qb1 {[%clk 0:02:57]}  Nxd3+ {[%clk 0:02:31]} 11. Qxd3 {[%clk 0:02:57]}  fxe4 {[%clk 0:02:32]} 12. Nxe4 {[%clk 0:02:56]}  Nxe4 {[%clk 0:02:31]} 13. fxe4 {[%clk 0:02:54]}  Qh4+ {[%clk 0:02:29]} 14. g3 {[%clk 0:02:54]}  Qh3 {[%clk 0:02:27]} 15. Be3 {[%clk 0:02:46]}  Rf3 {[%clk 0:02:20]} 16. Qd2 {[%clk 0:01:56]}  Bg4 {[%clk 0:01:52]} 17. O-O-O {[%clk 0:01:54]}  Rxe3 {[%clk 0:01:48]} 18. Qxe3 {[%clk 0:01:54]}  Bh6 {[%clk 0:01:49]} 19. Nf4 {[%clk 0:01:54]}  exf4 {[%clk 0:01:48]} 20. Qd4 {[%clk 0:01:38]}  Bxd1 {[%clk 0:01:46]} 21. Rxd1 {[%clk 0:01:37]}  fxg3+ {[%clk 0:01:46]} 22. Kb1 {[%clk 0:01:36]}  gxh2 {[%clk 0:01:46]} 0-1


[Site "https://www.chess.com"]

[Event "Titled Tuesday Blitz April 05 Early 2022"]
[White "Chen, Qi b"]
[Black "Pinheiro, Iung Alicio de O."]
[WhiteFideId "8614733"]
[BlackFideId "2104350"]
[WhiteElo "2432"]
[BlackElo "2531"]
[Result "0-1"]
[Round "11"]
[TimeControl "180+1"]
[Date "2022.04.05"]
[WhiteClock "0:00:04"]
[BlackClock "0:00:06"]

1. e4 {[%clk 0:03:00]}  c5 {[%clk 0:02:59]} 2. Nf3 {[%clk 0:03:00]}  Nc6 {[%clk 0:02:59]} 3. Bb5 {[%clk 0:03:00]}  e6 {[%clk 0:02:59]} 4. Bxc6 {[%clk 0:02:57]}  bxc6 {[%clk 0:02:58]} 5. d3 {[%clk 0:02:58]}  Ne7 {[%clk 0:02:58]} 6. Nbd2 {[%clk 0:02:58]}  Ng6 {[%clk 0:02:56]} 7. h4 {[%clk 0:02:50]}  h5 {[%clk 0:02:38]} 8. e5 {[%clk 0:02:50]}  Qc7 {[%clk 0:02:35]} 9. Qe2 {[%clk 0:02:47]}  f6 {[%clk 0:02:35]} 10. Nc4 {[%clk 0:02:41]}  Ba6 {[%clk 0:02:32]} 11. Qe4 {[%clk 0:02:33]}  Kf7 {[%clk 0:02:16]} 12. Bf4 {[%clk 0:02:33]}  Bxc4 {[%clk 0:01:50]} 13. dxc4 {[%clk 0:02:31]}  d5 {[%clk 0:01:41]} 14. exd6 {[%clk 0:02:21]}  Bxd6 {[%clk 0:01:40]} 15. Bxd6 {[%clk 0:02:20]}  Qxd6 {[%clk 0:01:41]} 16. Rd1 {[%clk 0:02:18]}  Qc7 {[%clk 0:01:39]} 17. O-O {[%clk 0:02:13]}  Rhe8 {[%clk 0:01:37]} 18. Qe3 {[%clk 0:02:08]}  Qb6 {[%clk 0:01:24]} 19. b3 {[%clk 0:01:59]}  Rad8 {[%clk 0:01:24]} 20. g3 {[%clk 0:01:58]}  e5 {[%clk 0:01:24]} 21. Nd2 {[%clk 0:01:54]}  Ne7 {[%clk 0:01:17]} 22. Ne4 {[%clk 0:01:11]}  Nf5 {[%clk 0:01:08]} 23. Qf3 {[%clk 0:01:11]}  g6 {[%clk 0:01:06]} 24. Kg2 {[%clk 0:01:07]}  Rd4 {[%clk 0:00:57]} 25. Rde1 {[%clk 0:00:47]}  Qa5 {[%clk 0:00:48]} 26. a4 {[%clk 0:00:46]}  Red8 {[%clk 0:00:47]} 27. Rh1 {[%clk 0:00:42]}  Rd2 {[%clk 0:00:20]} 28. Nxd2 {[%clk 0:00:35]}  Rxd2 {[%clk 0:00:21]} 29. Qxc6 {[%clk 0:00:22]}  Qc3 {[%clk 0:00:18]} 30. Qb7+ {[%clk 0:00:16]}  Ke6 {[%clk 0:00:18]} 31. Rhf1 {[%clk 0:00:13]}  Qxg3+ {[%clk 0:00:17]} 32. Kh1 {[%clk 0:00:14]}  Rxf2 {[%clk 0:00:14]} 33. Qc6+ {[%clk 0:00:05]}  Kf7 {[%clk 0:00:14]} 34. Qc7+ {[%clk 0:00:05]}  Kg8 {[%clk 0:00:14]} 35. Qc8+ {[%clk 0:00:04]}  Kg7 {[%clk 0:00:14]} 36. Qc7+ {[%clk 0:00:03]}  Kh6 {[%clk 0:00:13]} 37. Rxf2 {[%clk 0:00:02]}  Qxf2 {[%clk 0:00:13]} 38. Rg1 {[%clk 0:00:03]}  Qxh4+ {[%clk 0:00:12]} 39. Kg2 {[%clk 0:00:03]}  Qe4+ {[%clk 0:00:11]} 40. Kh2 {[%clk 0:00:02]}  Qf4+ {[%clk 0:00:11]} 41. Kh1 {[%clk 0:00:02]}  Qf3+ {[%clk 0:00:11]} 42. Kh2 {[%clk 0:00:02]}  Qf2+ {[%clk 0:00:10]} 43. Rg2 {[%clk 0:00:02]}  Qh4+ {[%clk 0:00:10]} 44. Kg1 {[%clk 0:00:03]}  Qe1+ {[%clk 0:00:11]} 45. Kh2 {[%clk 0:00:03]}  Ne3 {[%clk 0:00:11]} 46. Qxc5 {[%clk 0:00:01]}  Nf1+ {[%clk 0:00:08]} 47. Kg1 {[%clk 0:00:01]}  Ne3+ {[%clk 0:00:06]} 48. Kh2 {[%clk 0:00:01]}  Qh4+ {[%clk 0:00:07]} 49. Kg1 {[%clk 0:00:01]}  Nxg2 {[%clk 0:00:07]} 50. Kxg2 {[%clk 0:00:02]}  Qg4+ {[%clk 0:00:07]} 51. Kf2 {[%clk 0:00:02]}  Qf4+ {[%clk 0:00:07]} 52. Kg2 {[%clk 0:00:02]}  Qe4+ {[%clk 0:00:06]} 53. Kh3 {[%clk 0:00:02]}  Qxc2 {[%clk 0:00:06]} 54. Qd6 {[%clk 0:00:02]}  Kg5 {[%clk 0:00:06]} 55. c5 {[%clk 0:00:02]}  Qxb3+ {[%clk 0:00:07]} 56. Kg2 {[%clk 0:00:03]}  Kg4 {[%clk 0:00:06]} 57. c6 {[%clk 0:00:03]}  Qc2+ {[%clk 0:00:06]} 58. Kg1 {[%clk 0:00:03]}  Kg3 {[%clk 0:00:06]} 59. Kf1 {[%clk 0:00:04]}  Qf2# {[%clk 0:00:06]} 0-1


[Site "https://www.chess.com"]

[Event "Titled Tuesday Blitz April 05 Early 2022"]
[White "Coto Mederos, Michel"]
[Black "Madaminov, Mukhiddin"]
[WhiteFideId "3508528"]
[BlackFideId "14210703"]
[WhiteElo "2427"]
[BlackElo "1916"]
[Result "1-0"]
[Round "11"]
[TimeControl "180+1"]
[Date "2022.04.05"]
[WhiteClock "0:00:06"]
[BlackClock "0:00:04"]

1. c4 {[%clk 0:03:00]}  e5 {[%clk 0:02:59]} 2. Nc3 {[%clk 0:03:00]}  Nc6 {[%clk 0:02:58]} 3. g3 {[%clk 0:02:57]}  Bc5 {[%clk 0:02:58]} 4. Bg2 {[%clk 0:02:58]}  d6 {[%clk 0:02:59]} 5. e3 {[%clk 0:02:58]}  a6 {[%clk 0:02:59]} 6. Nge2 {[%clk 0:02:57]}  Ba7 {[%clk 0:02:58]} 7. b3 {[%clk 0:02:57]}  Nf6 {[%clk 0:02:57]} 8. Bb2 {[%clk 0:02:56]}  Bf5 {[%clk 0:02:54]} 9. d3 {[%clk 0:02:27]}  h5 {[%clk 0:02:52]} 10. h3 {[%clk 0:02:26]}  Qd7 {[%clk 0:02:51]} 11. Nd5 {[%clk 0:02:15]}  Nxd5 {[%clk 0:02:50]} 12. cxd5 {[%clk 0:02:16]}  Ne7 {[%clk 0:02:47]} 13. d4 {[%clk 0:02:07]}  f6 {[%clk 0:02:43]} 14. Qd2 {[%clk 0:01:51]}  O-O-O {[%clk 0:02:38]} 15. e4 {[%clk 0:01:34]}  Bg6 {[%clk 0:02:37]} 16. O-O-O {[%clk 0:01:32]}  Kb8 {[%clk 0:02:35]} 17. f4 {[%clk 0:01:21]}  exf4 {[%clk 0:02:34]} 18. gxf4 {[%clk 0:01:12]}  Rc8 {[%clk 0:02:30]} 19. f5 {[%clk 0:01:12]}  Bf7 {[%clk 0:02:29]} 20. Kb1 {[%clk 0:00:57]}  g6 {[%clk 0:02:27]} 21. fxg6 {[%clk 0:00:55]}  Bxg6 {[%clk 0:02:27]} 22. Nf4 {[%clk 0:00:52]}  Bh7 {[%clk 0:02:27]} 23. Ka1 {[%clk 0:00:49]}  c6 {[%clk 0:02:22]} 24. dxc6 {[%clk 0:00:47]}  Nxc6 {[%clk 0:02:22]} 25. Nxh5 {[%clk 0:00:34]}  Qf7 {[%clk 0:02:16]} 26. Nf4 {[%clk 0:00:30]}  Rhg8 {[%clk 0:02:16]} 27. Rhf1 {[%clk 0:00:29]}  Qg7 {[%clk 0:02:06]} 28. Bh1 {[%clk 0:00:26]}  Rge8 {[%clk 0:02:03]} 29. Nh5 {[%clk 0:00:18]}  Qe7 {[%clk 0:01:51]} 30. Nxf6 {[%clk 0:00:18]}  Rf8 {[%clk 0:01:50]} 31. Nxh7 {[%clk 0:00:18]}  Qxh7 {[%clk 0:01:51]} 32. e5 {[%clk 0:00:17]}  Rxf1 {[%clk 0:01:46]} 33. Rxf1 {[%clk 0:00:18]}  dxe5 {[%clk 0:01:46]} 34. dxe5 {[%clk 0:00:19]}  Qxh3 {[%clk 0:01:47]} 35. Re1 {[%clk 0:00:15]}  Qe6 {[%clk 0:01:45]} 36. Bd5 {[%clk 0:00:14]}  Rd8 {[%clk 0:01:36]} 37. Bxe6 {[%clk 0:00:12]}  Rxd2 {[%clk 0:01:37]} 38. Bg4 {[%clk 0:00:11]}  Nd4 {[%clk 0:01:28]} 39. e6 {[%clk 0:00:10]}  Bc5 {[%clk 0:00:54]} 40. e7 {[%clk 0:00:08]}  Bxe7 {[%clk 0:00:55]} 41. Rxe7 {[%clk 0:00:08]}  Nc2+ {[%clk 0:00:44]} 42. Kb1 {[%clk 0:00:08]}  Nb4 {[%clk 0:00:40]} 43. Bc3 {[%clk 0:00:08]}  Rxa2 {[%clk 0:00:36]} 44. Bxb4 {[%clk 0:00:07]}  Rf2 {[%clk 0:00:37]} 45. Re4 {[%clk 0:00:04]}  Kc7 {[%clk 0:00:36]} 46. Bc3 {[%clk 0:00:04]}  Kc6 {[%clk 0:00:33]} 47. Be2 {[%clk 0:00:04]}  Kd5 {[%clk 0:00:32]} 48. Re5+ {[%clk 0:00:05]}  Kc6 {[%clk 0:00:33]} 49. Re3 {[%clk 0:00:06]}  Rf4 {[%clk 0:00:29]} 50. Bf3+ {[%clk 0:00:05]}  Kb6 {[%clk 0:00:28]} 51. Kc2 {[%clk 0:00:05]}  a5 {[%clk 0:00:27]} 52. Be4 {[%clk 0:00:05]}  Ka6 {[%clk 0:00:26]} 53. Bd5 {[%clk 0:00:05]}  b6 {[%clk 0:00:24]} 54. Bc4+ {[%clk 0:00:05]}  Kb7 {[%clk 0:00:23]} 55. Bb5 {[%clk 0:00:05]}  Rf7 {[%clk 0:00:20]} 56. Re6 {[%clk 0:00:05]}  Rc7 {[%clk 0:00:20]} 57. Kd3 {[%clk 0:00:05]}  Rc5 {[%clk 0:00:19]} 58. Be8 {[%clk 0:00:03]}  Rd5+ {[%clk 0:00:11]} 59. Bd4 {[%clk 0:00:04]}  Rd8 {[%clk 0:00:08]} 60. Bb5 {[%clk 0:00:03]}  a4 {[%clk 0:00:06]} 61. Rxb6+ {[%clk 0:00:03]}  Ka8 {[%clk 0:00:07]} 62. bxa4 {[%clk 0:00:03]}  Rg8 {[%clk 0:00:04]} 63. Re6 {[%clk 0:00:03]}  Rc8 {[%clk 0:00:03]} 64. Bc6+ {[%clk 0:00:03]}  Kb8 {[%clk 0:00:04]} 65. Be5+ {[%clk 0:00:03]}  Ka7 {[%clk 0:00:04]} 66. Bd4+ {[%clk 0:00:03]}  Kb8 {[%clk 0:00:04]} 67. Bb5 {[%clk 0:00:04]}  Rd8 {[%clk 0:00:04]} 68. Re8 {[%clk 0:00:04]}  Kc7 {[%clk 0:00:02]} 69. Rxd8 {[%clk 0:00:04]}  Kb7 {[%clk 0:00:02]} 70. Rd7+ {[%clk 0:00:02]}  Ka8 {[%clk 0:00:03]} 71. Rg7 {[%clk 0:00:03]}  Kb8 {[%clk 0:00:03]} 72. Rh7 {[%clk 0:00:04]}  Ka8 {[%clk 0:00:03]} 73. Bc4 {[%clk 0:00:04]}  Kb8 {[%clk 0:00:04]} 74. Bd5 {[%clk 0:00:05]}  Kc8 {[%clk 0:00:04]} 75. Bb6 {[%clk 0:00:06]}  Kb8 {[%clk 0:00:04]} 76. Rh8# {[%clk 0:00:06]} 1-0


[Site "https://www.chess.com"]

[Event "Titled Tuesday Blitz April 05 Early 2022"]
[White "Dang, Hoang Son"]
[Black "Mickiewicz, Piotr"]
[WhiteFideId "12402435"]
[BlackFideId "1114891"]
[WhiteElo "2252"]
[BlackElo "2266"]
[Result "1-0"]
[Round "11"]
[TimeControl "180+1"]
[Date "2022.04.05"]
[WhiteClock "0:01:03"]
[BlackClock "0:00:07"]

1. d4 {[%clk 0:03:00]}  Nf6 {[%clk 0:02:59]} 2. Bf4 {[%clk 0:03:01]}  e6 {[%clk 0:03:00]} 3. e3 {[%clk 0:03:00]}  Bd6 {[%clk 0:03:00]} 4. Bg3 {[%clk 0:02:49]}  b6 {[%clk 0:02:56]} 5. Nf3 {[%clk 0:02:45]}  Bb7 {[%clk 0:02:55]} 6. Nbd2 {[%clk 0:02:46]}  Bxg3 {[%clk 0:02:51]} 7. hxg3 {[%clk 0:02:46]}  d6 {[%clk 0:02:50]} 8. Bd3 {[%clk 0:02:45]}  h6 {[%clk 0:02:49]} 9. Qe2 {[%clk 0:02:45]}  a6 {[%clk 0:02:48]} 10. O-O-O {[%clk 0:02:46]}  Nbd7 {[%clk 0:02:46]} 11. e4 {[%clk 0:02:43]}  b5 {[%clk 0:02:27]} 12. Kb1 {[%clk 0:02:41]}  Qb8 {[%clk 0:02:20]} 13. c3 {[%clk 0:02:25]}  c5 {[%clk 0:02:19]} 14. e5 {[%clk 0:02:25]}  dxe5 {[%clk 0:01:57]} 15. dxe5 {[%clk 0:02:25]}  Ng4 {[%clk 0:01:51]} 16. Be4 {[%clk 0:02:17]}  h5 {[%clk 0:01:02]} 17. Bxb7 {[%clk 0:02:12]}  Qxb7 {[%clk 0:01:01]} 18. Ne4 {[%clk 0:02:13]}  Qc7 {[%clk 0:00:45]} 19. Nd6+ {[%clk 0:02:08]}  Ke7 {[%clk 0:00:44]} 20. Ng5 {[%clk 0:01:52]}  Ndxe5 {[%clk 0:00:31]} 21. Ndxf7 {[%clk 0:01:38]}  Nxf7 {[%clk 0:00:19]} 22. Qxe6+ {[%clk 0:01:34]}  Kf8 {[%clk 0:00:18]} 23. Rd7 {[%clk 0:01:28]}  Qxd7 {[%clk 0:00:17]} 24. Qxd7 {[%clk 0:01:29]}  Nxg5 {[%clk 0:00:17]} 25. Qd5 {[%clk 0:01:29]}  Re8 {[%clk 0:00:02]} 26. Qxc5+ {[%clk 0:01:29]}  Kf7 {[%clk 0:00:01]} 27. Qxg5 {[%clk 0:01:30]}  Nf6 {[%clk 0:00:01]} 28. f3 {[%clk 0:01:24]}  Re6 {[%clk 0:00:02]} 29. a3 {[%clk 0:01:21]}  Rhe8 {[%clk 0:00:03]} 30. Ka2 {[%clk 0:01:21]}  Re1 {[%clk 0:00:04]} 31. Rh4 {[%clk 0:01:17]}  R1e5 {[%clk 0:00:03]} 32. Qd2 {[%clk 0:01:15]}  a5 {[%clk 0:00:04]} 33. Rf4 {[%clk 0:01:13]}  a4 {[%clk 0:00:05]} 34. Qd7+ {[%clk 0:01:12]}  R8e7 {[%clk 0:00:06]} 35. Qd6 {[%clk 0:01:12]}  R5e6 {[%clk 0:00:05]} 36. Qd5 {[%clk 0:01:11]}  Kg6 {[%clk 0:00:05]} 37. Qf5+ {[%clk 0:01:10]}  Kf7 {[%clk 0:00:04]} 38. Qxh5+ {[%clk 0:01:10]}  Kg8 {[%clk 0:00:04]} 39. Qxb5 {[%clk 0:01:10]}  Re5 {[%clk 0:00:04]} 40. Qxa4 {[%clk 0:01:10]}  R5e6 {[%clk 0:00:05]} 41. g4 {[%clk 0:01:10]}  Kf7 {[%clk 0:00:05]} 42. g5 {[%clk 0:01:10]}  Rb6 {[%clk 0:00:05]} 43. gxf6 {[%clk 0:01:09]}  Reb7 {[%clk 0:00:06]} 44. fxg7+ {[%clk 0:01:09]}  Kxg7 {[%clk 0:00:07]} 45. Qd4+ {[%clk 0:01:09]}  Kh7 {[%clk 0:00:08]} 46. Qe4+ {[%clk 0:01:07]}  Kg8 {[%clk 0:00:09]} 47. Qe8+ {[%clk 0:01:05]}  Kg7 {[%clk 0:00:08]} 48. Rg4+ {[%clk 0:01:05]}  Kf6 {[%clk 0:00:06]} 49. Rg6+ {[%clk 0:01:02]}  Kf5 {[%clk 0:00:07]} 50. Qe4# {[%clk 0:01:03]} 1-0


[Site "https://www.chess.com"]

[Event "Titled Tuesday Blitz April 05 Early 2022"]
[White "Dukic, Zachary"]
[Black "Piliczewski, Bogusz"]
[WhiteFideId "2617188"]
[BlackFideId "1104144"]
[WhiteElo "2086"]
[BlackElo "1896"]
[Result "1-0"]
[Round "11"]
[TimeControl "180+1"]
[Date "2022.04.05"]
[WhiteClock "0:01:21"]
[BlackClock "0:00:18"]

1. e4 {[%clk 0:03:00]}  c6 {[%clk 0:02:59]} 2. d4 {[%clk 0:03:00]}  d5 {[%clk 0:03:00]} 3. Nd2 {[%clk 0:03:01]}  dxe4 {[%clk 0:02:59]} 4. Nxe4 {[%clk 0:03:02]}  Bf5 {[%clk 0:02:59]} 5. Ng3 {[%clk 0:03:02]}  Bg6 {[%clk 0:03:00]} 6. h4 {[%clk 0:03:03]}  h6 {[%clk 0:03:00]} 7. Nf3 {[%clk 0:03:03]}  Nd7 {[%clk 0:02:59]} 8. h5 {[%clk 0:03:04]}  Bh7 {[%clk 0:02:59]} 9. Bd3 {[%clk 0:03:04]}  Bxd3 {[%clk 0:02:59]} 10. Qxd3 {[%clk 0:03:05]}  e6 {[%clk 0:02:59]} 11. Bd2 {[%clk 0:03:06]}  Ngf6 {[%clk 0:02:57]} 12. O-O-O {[%clk 0:03:06]}  Be7 {[%clk 0:02:57]} 13. Kb1 {[%clk 0:03:07]}  O-O {[%clk 0:02:47]} 14. Ne4 {[%clk 0:03:07]}  Nxe4 {[%clk 0:02:46]} 15. Qxe4 {[%clk 0:03:08]}  Nf6 {[%clk 0:02:46]} 16. Qe2 {[%clk 0:03:08]}  Qd5 {[%clk 0:02:46]} 17. Ne5 {[%clk 0:03:06]}  Qe4 {[%clk 0:02:39]} 18. Be3 {[%clk 0:03:06]}  Nd5 {[%clk 0:02:30]} 19. g4 {[%clk 0:02:35]}  Bg5 {[%clk 0:02:15]} 20. Rhe1 {[%clk 0:02:26]}  Nxe3 {[%clk 0:01:47]} 21. fxe3 {[%clk 0:02:25]}  Rad8 {[%clk 0:01:40]} 22. Nd3 {[%clk 0:02:19]}  b6 {[%clk 0:01:30]} 23. Nf2 {[%clk 0:02:17]}  Qd5 {[%clk 0:01:24]} 24. e4 {[%clk 0:02:13]}  Qb5 {[%clk 0:01:20]} 25. c4 {[%clk 0:02:02]}  Qa5 {[%clk 0:01:19]} 26. e5 {[%clk 0:02:00]}  Rd7 {[%clk 0:01:16]} 27. Ne4 {[%clk 0:02:00]}  Be7 {[%clk 0:01:15]} 28. Rg1 {[%clk 0:01:41]}  Rfd8 {[%clk 0:01:15]} 29. g5 {[%clk 0:01:33]}  hxg5 {[%clk 0:01:13]} 30. Nxg5 {[%clk 0:01:28]}  Rxd4 {[%clk 0:01:12]} 31. Rxd4 {[%clk 0:01:20]}  Rxd4 {[%clk 0:01:11]} 32. Qf2 {[%clk 0:01:21]}  Qxe5 {[%clk 0:00:18]} 33. Qxf7+ {[%clk 0:01:20]}  Kh8 {[%clk 0:00:18]} 34. Qe8+ {[%clk 0:01:21]} 1-0


[Site "https://www.chess.com"]

[Event "Titled Tuesday Blitz April 05 Early 2022"]
[White "Ezat, Mohamed"]
[Black "Maung, Maung Kyaw Zaw Hein"]
[WhiteFideId "10600906"]
[BlackFideId "13001698"]
[WhiteElo "2386"]
[BlackElo "1785"]
[Result "1-0"]
[Round "11"]
[TimeControl "180+1"]
[Date "2022.04.05"]
[WhiteClock "0:00:22"]
[BlackClock "0:00:52"]

1. e4 {[%clk 0:02:51]}  c6 {[%clk 0:02:59]} 2. d4 {[%clk 0:02:51]}  d5 {[%clk 0:03:00]} 3. Nc3 {[%clk 0:02:49]}  dxe4 {[%clk 0:03:00]} 4. Nxe4 {[%clk 0:02:50]}  Bf5 {[%clk 0:02:58]} 5. Ng3 {[%clk 0:02:46]}  Bg6 {[%clk 0:02:56]} 6. Nf3 {[%clk 0:02:45]}  Nd7 {[%clk 0:02:56]} 7. h4 {[%clk 0:02:44]}  h6 {[%clk 0:02:56]} 8. h5 {[%clk 0:02:44]}  Bh7 {[%clk 0:02:56]} 9. Bd3 {[%clk 0:02:44]}  Bxd3 {[%clk 0:02:57]} 10. Qxd3 {[%clk 0:02:45]}  e6 {[%clk 0:02:57]} 11. Bd2 {[%clk 0:02:46]}  Ngf6 {[%clk 0:02:58]} 12. O-O-O {[%clk 0:02:46]}  Be7 {[%clk 0:02:58]} 13. Kb1 {[%clk 0:02:45]}  O-O {[%clk 0:02:58]} 14. Ne4 {[%clk 0:02:44]}  Nxe4 {[%clk 0:02:58]} 15. Qxe4 {[%clk 0:02:44]}  Nf6 {[%clk 0:02:59]} 16. Qe2 {[%clk 0:02:45]}  Qd5 {[%clk 0:02:59]} 17. g4 {[%clk 0:02:40]}  Qe4 {[%clk 0:02:37]} 18. Be3 {[%clk 0:01:10]}  Nxg4 {[%clk 0:02:34]} 19. Rdg1 {[%clk 0:01:08]}  Nxe3 {[%clk 0:02:29]} 20. fxe3 {[%clk 0:01:06]}  Bf6 {[%clk 0:02:24]} 21. Rg3 {[%clk 0:00:46]}  Kh8 {[%clk 0:02:13]} 22. Rhg1 {[%clk 0:00:46]}  Rg8 {[%clk 0:02:01]} 23. Rg4 {[%clk 0:00:46]}  Qf5 {[%clk 0:01:58]} 24. e4 {[%clk 0:00:44]}  Qxh5 {[%clk 0:01:43]} 25. Qg2 {[%clk 0:00:37]}  e5 {[%clk 0:01:29]} 26. Rh1 {[%clk 0:00:34]}  Qxg4 {[%clk 0:01:14]} 27. Qxg4 {[%clk 0:00:33]}  Rae8 {[%clk 0:01:10]} 28. dxe5 {[%clk 0:00:29]}  Bxe5 {[%clk 0:01:09]} 29. Qf5 {[%clk 0:00:29]}  Bf6 {[%clk 0:00:57]} 30. e5 {[%clk 0:00:28]}  Bd8 {[%clk 0:00:57]} 31. Qxf7 {[%clk 0:00:28]}  Rgf8 {[%clk 0:00:56]} 32. Qg6 {[%clk 0:00:24]}  Re7 {[%clk 0:00:52]} 33. Ng5 {[%clk 0:00:22]} 1-0


[Site "https://www.chess.com"]

[Event "Titled Tuesday Blitz April 05 Early 2022"]
[White "Heinemann, Josefine"]
[Black "Lehtosaari, Mauri"]
[WhiteFideId "12900460"]
[BlackFideId "501999"]
[WhiteElo "2300"]
[BlackElo "2531"]
[Result "1-0"]
[Round "11"]
[TimeControl "180+1"]
[Date "2022.04.05"]
[WhiteClock "0:00:17"]
[BlackClock "0:00:02"]

1. Nf3 {[%clk 0:03:00]}  d5 {[%clk 0:02:59]} 2. g3 {[%clk 0:03:01]}  Nf6 {[%clk 0:03:00]} 3. Bg2 {[%clk 0:03:01]}  c6 {[%clk 0:03:00]} 4. O-O {[%clk 0:03:01]}  Bg4 {[%clk 0:03:01]} 5. c4 {[%clk 0:03:01]}  e6 {[%clk 0:03:01]} 6. cxd5 {[%clk 0:03:01]}  exd5 {[%clk 0:02:56]} 7. d3 {[%clk 0:03:02]}  Be7 {[%clk 0:02:56]} 8. Qb3 {[%clk 0:02:51]}  Qb6 {[%clk 0:02:43]} 9. Qxb6 {[%clk 0:02:42]}  axb6 {[%clk 0:02:43]} 10. Be3 {[%clk 0:02:42]}  b5 {[%clk 0:02:25]} 11. Nbd2 {[%clk 0:02:42]}  Nbd7 {[%clk 0:02:23]} 12. Nb3 {[%clk 0:02:39]}  O-O {[%clk 0:02:14]} 13. a3 {[%clk 0:02:38]}  h6 {[%clk 0:02:13]} 14. h3 {[%clk 0:02:38]}  Bf5 {[%clk 0:02:06]} 15. Rac1 {[%clk 0:02:37]}  Rfe8 {[%clk 0:02:01]} 16. Nbd4 {[%clk 0:02:37]}  Bg6 {[%clk 0:02:01]} 17. Nh4 {[%clk 0:02:35]}  Bh7 {[%clk 0:02:01]} 18. Nhf5 {[%clk 0:02:34]}  Bf8 {[%clk 0:02:01]} 19. g4 {[%clk 0:02:34]}  Nc5 {[%clk 0:01:52]} 20. Bf4 {[%clk 0:02:31]}  Ne6 {[%clk 0:01:49]} 21. Bg3 {[%clk 0:02:25]}  Nxd4 {[%clk 0:01:48]} 22. Nxd4 {[%clk 0:02:25]}  Bg6 {[%clk 0:01:42]} 23. Rfe1 {[%clk 0:02:06]}  Nd7 {[%clk 0:01:41]} 24. f4 {[%clk 0:02:02]}  Bc5 {[%clk 0:01:38]} 25. Bf2 {[%clk 0:01:58]}  f6 {[%clk 0:01:31]} 26. e4 {[%clk 0:01:58]}  dxe4 {[%clk 0:01:28]} 27. dxe4 {[%clk 0:01:59]}  Bf7 {[%clk 0:01:28]} 28. Nf5 {[%clk 0:01:48]}  Bxf2+ {[%clk 0:01:26]} 29. Kxf2 {[%clk 0:01:48]}  Nb6 {[%clk 0:01:21]} 30. Nd6 {[%clk 0:01:45]}  Re7 {[%clk 0:01:20]} 31. Red1 {[%clk 0:01:30]}  Bb3 {[%clk 0:01:13]} 32. Rd3 {[%clk 0:01:23]}  Bc4 {[%clk 0:01:11]} 33. Nxc4 {[%clk 0:01:19]}  Nxc4 {[%clk 0:01:10]} 34. Rc2 {[%clk 0:01:19]}  Rae8 {[%clk 0:01:07]} 35. h4 {[%clk 0:01:18]}  Kf7 {[%clk 0:01:07]} 36. h5 {[%clk 0:01:18]}  Rc8 {[%clk 0:01:07]} 37. a4 {[%clk 0:01:16]}  Rcc7 {[%clk 0:00:59]} 38. axb5 {[%clk 0:01:12]}  cxb5 {[%clk 0:01:00]} 39. Rdc3 {[%clk 0:01:10]}  Rcd7 {[%clk 0:00:58]} 40. Ke2 {[%clk 0:00:55]}  Rd4 {[%clk 0:00:54]} 41. Rd3 {[%clk 0:00:38]}  Red7 {[%clk 0:00:51]} 42. Rxd4 {[%clk 0:00:37]}  Rxd4 {[%clk 0:00:52]} 43. b3 {[%clk 0:00:37]}  Nd6 {[%clk 0:00:48]} 44. Rc7+ {[%clk 0:00:35]}  Kf8 {[%clk 0:00:48]} 45. Ke3 {[%clk 0:00:34]}  Rb4 {[%clk 0:00:47]} 46. e5 {[%clk 0:00:31]}  fxe5 {[%clk 0:00:40]} 47. fxe5 {[%clk 0:00:32]}  Nf7 {[%clk 0:00:38]} 48. e6 {[%clk 0:00:28]}  Ng5 {[%clk 0:00:37]} 49. Bd5 {[%clk 0:00:28]}  Rxg4 {[%clk 0:00:33]} 50. e7+ {[%clk 0:00:25]}  Ke8 {[%clk 0:00:33]} 51. Bxb7 {[%clk 0:00:25]}  Kf7 {[%clk 0:00:09]} 52. Bc6 {[%clk 0:00:20]}  Rg3+ {[%clk 0:00:02]} 53. Kf2 {[%clk 0:00:17]} 1-0


[Site "https://www.chess.com"]

[Event "Titled Tuesday Blitz April 05 Early 2022"]
[White "Horcajuelo Rocamora, Martin"]
[Black "Onslow, Alfie"]
[WhiteFideId "24573027"]
[BlackFideId "436976"]
[WhiteElo "1822"]
[BlackElo "1884"]
[Result "1-0"]
[Round "11"]
[TimeControl "180+1"]
[Date "2022.04.05"]
[WhiteClock "0:00:45"]
[BlackClock "0:00:02"]

1. e4 {[%clk 0:02:16]}  c5 {[%clk 0:02:56]} 2. Nf3 {[%clk 0:02:14]}  Nc6 {[%clk 0:02:55]} 3. d4 {[%clk 0:02:15]}  cxd4 {[%clk 0:02:56]} 4. Nxd4 {[%clk 0:02:15]}  e5 {[%clk 0:02:56]} 5. Nb5 {[%clk 0:02:15]}  d6 {[%clk 0:02:56]} 6. N1c3 {[%clk 0:02:14]}  a6 {[%clk 0:02:56]} 7. Na3 {[%clk 0:02:15]}  b5 {[%clk 0:02:57]} 8. Nd5 {[%clk 0:02:15]}  Nge7 {[%clk 0:02:57]} 9. Bg5 {[%clk 0:02:14]}  h6 {[%clk 0:02:55]} 10. Bxe7 {[%clk 0:02:13]}  Bxe7 {[%clk 0:02:55]} 11. c3 {[%clk 0:02:14]}  O-O {[%clk 0:02:49]} 12. Nc2 {[%clk 0:02:13]}  f5 {[%clk 0:02:49]} 13. exf5 {[%clk 0:02:10]}  Bxf5 {[%clk 0:02:48]} 14. Nce3 {[%clk 0:02:09]}  Bg5 {[%clk 0:02:25]} 15. Be2 {[%clk 0:02:08]}  Ne7 {[%clk 0:02:16]} 16. O-O {[%clk 0:02:03]}  Be6 {[%clk 0:01:47]} 17. Bf3 {[%clk 0:02:01]}  Rc8 {[%clk 0:01:44]} 18. g3 {[%clk 0:01:56]}  Nxd5 {[%clk 0:01:25]} 19. Bxd5 {[%clk 0:01:52]}  Qe8 {[%clk 0:01:24]} 20. Bxe6+ {[%clk 0:01:51]}  Qxe6 {[%clk 0:01:24]} 21. Nd5 {[%clk 0:01:52]}  Rc5 {[%clk 0:01:19]} 22. Nb4 {[%clk 0:01:47]}  a5 {[%clk 0:01:16]} 23. Nd3 {[%clk 0:01:38]}  Rc4 {[%clk 0:01:16]} 24. Re1 {[%clk 0:01:29]}  Qf6 {[%clk 0:00:58]} 25. Rf1 {[%clk 0:01:25]}  h5 {[%clk 0:00:47]} 26. a4 {[%clk 0:01:21]}  bxa4 {[%clk 0:00:27]} 27. Rxa4 {[%clk 0:01:22]}  Rxa4 {[%clk 0:00:27]} 28. Qxa4 {[%clk 0:01:23]}  Qf3 {[%clk 0:00:21]} 29. Ne1 {[%clk 0:01:15]}  Qd5 {[%clk 0:00:18]} 30. Ng2 {[%clk 0:01:12]}  e4 {[%clk 0:00:11]} 31. h4 {[%clk 0:01:10]}  Bh6 {[%clk 0:00:10]} 32. Rd1 {[%clk 0:01:09]}  Qe5 {[%clk 0:00:10]} 33. Qc4+ {[%clk 0:01:06]}  Kh8 {[%clk 0:00:10]} 34. Rd5 {[%clk 0:01:03]}  Qf6 {[%clk 0:00:11]} 35. Qe2 {[%clk 0:01:01]}  Qe6 {[%clk 0:00:08]} 36. Rxh5 {[%clk 0:00:58]}  a4 {[%clk 0:00:06]} 37. Ne3 {[%clk 0:00:56]}  Kg8 {[%clk 0:00:04]} 38. Ng4 {[%clk 0:00:53]}  e3 {[%clk 0:00:02]} 39. Nxe3 {[%clk 0:00:45]} 1-0


[Site "https://www.chess.com"]